bitfinex/quotes_ETHUSD_20250526
["timestamp","ask_amount","ask_price","bid_price","bid_amount"]
[1748246927919,3.88003551,2577.3,2576.8,8.0]
[1748246928115,5.42673146,2577.5,2576.8,8.0]
[1748246928116,5.42742357,2577.1,2576.8,8.0]
[1748246928693,1.547,2577.1,2576.8,8.0]
[1748246928897,3.88022048,2577.2,2576.8,8.0]
[1748246929682,5.45540095,2577.3,2576.8,8.0]
[1748246929925,5.45540095,2577.3,2576.8,9.57569205]
[1748246930926,1.5753,2577.3,2576.8,8.0]
[1748246931125,3.88056103,2577.0,2576.8,8.0]
[1748246931313,4.14,2577.5,2576.6,3.876]
[1748246931314,3.88094416,2576.7,2576.6,3.876]
[1748246931682,3.88094416,2576.7,2576.6,11.876]
[1748246931900,3.88094416,2576.7,2576.6,8.0]
[1748246933952,3.88082378,2576.8,2576.7,8.0]
[1748246934137,3.88095238,2576.7,2576.4,8.66666667]
[1748246934340,3.88114678,2576.6,2576.4,8.66666667]
[1748246934656,3.88100652,2576.7,2576.4,8.66666667]
[1748246938627,3.88095427,2576.7,2576.4,8.66666667]
[1748246939057,1.6428,2577.1,2576.6,3.88099553]
[1748246939360,4.4925909,2577.6,2576.6,3.88099553]
[1748246939361,1.6428,2577.5,2577.1,3.8802238]
[1748246939515,0.61294028,2577.6,2577.3,1.5619]
[1748246939715,4.49260638,2577.6,2577.3,1.5619]
[1748246939914,3.87982797,2577.5,2577.1,1.5619]
[1748246940154,3.87982797,2577.5,2577.2,3.876]
[1748246940453,4.85383014,2577.6,2577.3,8.0]
[1748246941356,0.9742441,2577.6,2577.3,8.0]
[1748246941532,0.9742441,2577.6,2577.3,9.63471843]
[1748246941943,0.61294028,2577.6,2577.3,9.63471843]
[1748246942143,0.61294028,2577.6,2577.3,13.51474791]
[1748246942320,0.61294028,2577.6,2577.5,9.5112]
[1748246942654,0.61294028,2577.6,2577.5,1.5112]
[1748246942852,8.01914413,2577.9,2577.5,1.5112]
[1748246943064,8.38030689,2577.9,2577.5,1.5112]
[1748246943235,3.87927807,2577.8,2577.5,1.5112]
[1748246943861,3.87927807,2577.8,2577.5,3.00076964]
[1748246944658,4.14,2577.9,2577.5,6.87676964]
[1748246944659,3.87944389,2577.7,2577.5,6.87676964]
[1748246945454,3.87934356,2577.8,2577.5,6.87676964]
[1748246946460,3.8794559,2577.7,2577.3,1.63471843]
[1748246946633,1.5907,2577.8,2577.0,8.0]
[1748246946842,9.60997735,2577.8,2577.2,8.0]
[1748246947424,5.46997735,2577.8,2577.2,8.0]
[1748246947655,3.87960124,2577.6,2577.0,11.8804176]
[1748246948339,3.87951953,2577.7,2577.2,8.0]
[1748246948541,3.87951953,2577.7,2577.2,9.1880269]
[1748246948852,3.87959426,2577.6,2577.2,9.1880269]
[1748246949362,3.87959426,2577.6,2577.2,1.1880269]
[1748246949767,4.14,2577.8,2577.3,1.6108]
[1748246949963,3.8793031,2577.8,2577.4,8.27988269]
[1748246951227,3.8792769,2577.8,2577.4,0.27988269]
[1748246952384,8.01918133,2577.9,2577.4,0.27988269]
[1748246952565,4.14,2577.9,2577.4,4.15975832]
[1748246952731,4.14,2577.9,2577.6,8.0]
[1748246953080,8.373,2578.1,2577.7,1.6171]
[1748246953244,12.509,2578.1,2577.7,1.6171]
[1748246953445,16.38783435,2578.1,2577.7,1.6171]
[1748246953854,3.87901002,2578.0,2577.7,1.6171]
[1748246954584,16.38784772,2578.1,2577.3,9.5093]
[1748246954753,3.8795142,2577.7,2577.5,8.0]
[1748246954938,3.87948713,2577.7,2577.5,8.0]
[1748246955138,3.87956662,2577.7,2577.5,8.0]
[1748246955894,3.8795779,2577.6,2577.5,8.0]
[1748246956193,3.8795196,2577.7,2577.3,13.3843]
[1748246956386,1.6666,2577.8,2577.3,13.3843]
[1748246956546,1.6666,2577.8,2577.2,8.0]
[1748246956547,3.87987894,2577.4,2577.2,8.0]
[1748246956741,3.87987894,2577.4,2577.2,9.08714465]
[1748246956979,3.88004683,2577.3,2577.1,5.4686]
[1748246957184,3.88004683,2577.3,2577.2,8.0]
[1748246957372,3.88033193,2577.1,2576.8,1.6087]
[1748246957570,3.88033193,2577.1,2576.8,5.4837]
[1748246957866,3.88033193,2577.1,2576.8,1.6087]
[1748246958081,3.88033193,2577.1,2576.8,2.15707]
[1748246958391,3.88051645,2577.0,2576.8,2.15707]
[1748246958906,3.88042038,2577.1,2576.8,2.15707]
[1748246959353,3.88042038,2577.1,2576.7,3.875]
[1748246959354,1.6142,2577.3,2576.7,3.875]
[1748246959549,3.88059191,2577.0,2576.7,3.875]
[1748246960584,3.88056096,2577.0,2576.7,3.875]
[1748246960810,5.4892,2577.3,2576.4,2.24996667]
[1748246961107,3.88092641,2576.8,2576.4,0.66666667]
[1748246961270,1.6424,2576.9,2576.4,0.66666667]
[1748246961271,3.88123423,2576.5,2576.4,0.66666667]
[1748246962275,5.43683423,2576.5,2576.4,0.66666667]
[1748246963770,3.88123423,2576.5,2576.4,0.66666667]
[1748246964884,5.39843423,2576.5,2576.4,0.66666667]
[1748246970045,3.88052538,2577.0,2576.5,3.88116071]
[1748246970265,8.01730566,2577.2,2576.6,3.88102104]
[1748246970588,4.137,2577.2,2576.7,8.0]
[1748246970709,3.88041805,2577.1,2576.7,10.5391681]
[1748246971101,3.88025117,2577.2,2576.7,10.5391681]
[1748246971638,3.88034264,2577.1,2576.8,2.326]
[1748246971841,3.88034264,2577.1,2576.7,10.5391681]
[1748246971999,3.88034264,2577.1,2576.8,1.60548899]
[1748246972201,1.94879993,2577.6,2576.8,9.60548899]
[1748246972422,3.88006398,2577.3,2576.8,13.48148899]
[1748246972743,3.88006398,2577.3,2576.9,1.5276]
[1748246974209,3.88021796,2577.2,2576.9,1.5276]
[1748246974427,3.88021796,2577.2,2576.9,2.2285089]
[1748246974622,3.88021796,2577.2,2576.9,10.2285089]
[1748246975730,3.88048117,2577.0,2576.8,8.0]
[1748246976420,3.88048117,2577.0,2576.7,1.5076]
[1748246976595,3.88048117,2577.0,2576.7,9.5076]
[1748246977241,3.88039587,2577.1,2576.7,9.5076]
[1748246978252,3.88033406,2577.1,2576.7,9.5076]
[1748246978405,3.88048117,2577.0,2576.7,9.5076]
[1748246978606,3.88048117,2577.0,2576.7,11.23408237]
[1748246978807,3.88104547,2576.7,2576.6,8.0]
[1748246979042,3.88085082,2576.8,2576.5,1.662]
[1748246979455,3.88085082,2576.8,2576.5,9.662]
[1748246982013,3.88085082,2576.8,2576.5,7.662]
[1748246983151,3.88053555,2577.0,2576.5,7.662]
[1748246983354,8.01453555,2577.0,2576.5,7.662]
[1748246983850,3.88053555,2577.0,2576.5,7.662]
[1748246984043,3.88053555,2577.0,2576.5,9.59208139]
[1748246984751,3.88063851,2576.9,2576.5,9.59208139]
[1748246984953,3.88063851,2576.9,2576.5,7.662]
[1748246985162,3.88063851,2576.9,2576.5,9.1959]
[1748246985327,1.94879993,2578.0,2576.5,9.1959]
[1748246985515,1.6383,2577.5,2576.7,8.0]
[1748246985718,3.88027561,2577.2,2576.7,3.88092178]
[1748246985913,3.88027561,2577.2,2576.7,5.84312619]
[1748246986341,3.87987894,2577.4,2576.7,5.84312619]
[1748246986342,3.88012503,2577.3,2576.7,5.84312619]
[1748246986547,3.88029533,2577.2,2576.7,1.96220441]
[1748246987859,3.88029533,2577.2,2576.8,1.5339]
[1748246989664,3.88034773,2577.1,2576.8,1.5339]
[1748246991739,3.88024632,2577.2,2576.8,1.5339]
[1748246991941,3.87975743,2577.5,2576.8,1.5339]
[1748246992135,3.87997894,2577.4,2576.8,5.41460031]
[1748246992341,8.01405943,2577.3,2576.8,5.41460031]
[1748246993469,3.88005943,2577.3,2576.8,5.41460031]
[1748246993970,3.88005943,2577.3,2576.8,1.5339]
[1748246995083,3.88021356,2577.2,2576.8,1.5339]
[1748246995237,3.8803306,2577.1,2576.8,1.5339]
[1748246995667,3.88021356,2577.2,2576.8,1.5339]
[1748246995863,3.8803306,2577.1,2576.8,1.5339]
[1748246996634,3.8802618,2577.2,2576.8,1.5339]
[1748246997161,8.01381333,2577.5,2577.0,8.0]
[1748246997337,3.8799619,2577.4,2576.9,8.0]
[1748246999488,3.87981333,2577.5,2576.9,8.0]
[1748246999489,2.56174021,2578.3,2577.5,1.6228]
[1748246999779,2.56174021,2578.3,2577.8,8.0]
[1748247000576,1.94879993,2578.3,2577.8,8.0]
[1748247000781,3.87868023,2578.2,2577.8,8.0]
[1748247001080,1.94879993,2578.3,2578.2,11.87867504]
[1748247001382,1.94879993,2578.3,2578.2,8.0]
[1748247005982,3.87823554,2578.5,2578.3,8.0]
[1748247006146,3.87823554,2578.5,2578.2,8.0]
[1748247006588,3.87840378,2578.4,2578.2,8.0]
[1748247008047,3.87828428,2578.5,2578.2,8.0]
[1748247011913,3.87828428,2578.5,2578.2,10.326]
[1748247012184,3.87841324,2578.4,2578.2,8.0]
[1748247012390,3.87857293,2578.3,2578.0,3.874]
[1748247012896,3.87857293,2578.3,2578.1,8.0]
[1748247014147,3.87780525,2578.8,2577.9,1.556]
[1748247014357,3.925,2578.9,2577.7,8.0]
[1748247014358,3.87921939,2577.9,2577.7,1.5343]
[1748247014656,3.87921939,2577.9,2577.6,8.0]
[1748247015057,1.6394,2578.2,2577.6,8.0]
[1748247015058,3.87902808,2578.0,2577.6,8.0]
[1748247015271,3.87889931,2578.1,2577.6,9.72880094]
[1748247016464,3.8789854,2578.0,2577.6,9.72880094]
[1748247018488,3.87889413,2578.1,2577.6,9.72880094]
[1748247018687,3.87898059,2578.0,2577.6,9.72880094]
[1748247019259,3.87931973,2577.8,2577.5,1.5343]
[1748247019758,3.87931973,2577.8,2577.5,9.5343]
[1748247020477,3.87918072,2577.9,2577.5,9.5343]
[1748247020881,3.87930191,2577.8,2577.5,9.5343]
[1748247023122,1.99978359,2578.2,2577.5,9.5343]
[1748247023319,0.36038359,2578.2,2577.6,0.53136727]
[1748247023526,0.36038359,2578.2,2577.6,11.87949433]
[1748247023695,3.87883412,2578.1,2577.6,11.87949433]
[1748247024486,3.87883412,2578.1,2577.7,0.3876]
[1748247024816,3.87872815,2578.2,2577.6,11.87949433]
[1748247025123,3.87872815,2578.2,2577.7,1.5142625]
[1748247025329,3.87872815,2578.2,2577.8,8.0]
[1748247025625,3.87872815,2578.2,2577.7,9.5142625]
[1748247026227,3.87884845,2578.1,2577.7,9.5142625]
[1748247028620,3.87870328,2578.2,2577.7,9.5142625]
[1748247028998,3.87883354,2578.1,2577.7,9.5142625]
[1748247030129,3.87874606,2578.2,2577.7,13.39361461]
[1748247030295,3.87858224,2578.3,2577.9,1.6343]
[1748247030613,8.00930196,2578.5,2577.9,5.51329727]
[1748247030819,8.00930196,2578.5,2577.9,5.51335757]
[1748247031035,8.00930196,2578.5,2578.0,1.07319969]
[1748247031437,3.87838518,2578.4,2578.0,9.07319969]
[1748247031579,4.24016432,2578.4,2578.0,8.0]
[1748247032031,4.24016432,2578.4,2578.1,8.0]
[1748247032199,4.24016432,2578.4,2578.0,8.0]
[1748247032526,4.24016432,2578.4,2577.9,9.6343]
[1748247032687,3.87838518,2578.4,2577.9,12.12753024]
[1748247033122,3.87852737,2578.3,2577.9,12.12753024]
[1748247033313,3.87839589,2578.4,2577.9,10.49323024]
[1748247033516,3.8785246,2578.3,2577.9,10.49323024]
[1748247035239,3.87873103,2578.2,2577.9,10.49323024]
[1748247035533,3.87888915,2578.1,2577.8,8.0]
[1748247035701,3.87906399,2578.0,2577.7,1.6374]
[1748247035884,3.8791744,2577.9,2577.6,8.0]
[1748247036090,3.87912642,2577.9,2577.5,1.5439]
[1748247036285,1.659,2578.1,2577.1,0.61861717]
[1748247036508,3.87982238,2577.5,2577.0,1.6211]
[1748247036835,3.87982238,2577.5,2577.0,9.6211]
[1748247037131,0.36172648,2577.6,2577.1,3.88032815]
[1748247037487,0.36172648,2577.6,2577.2,8.0]
[1748247037687,0.36172648,2577.6,2577.2,9.35014282]
[1748247037888,0.36172648,2577.6,2577.2,1.35014282]
[1748247038098,4.24140546,2577.6,2577.2,8.0]
[1748247038328,3.87993971,2577.4,2577.0,9.6211]
[1748247039231,4.24133457,2577.6,2577.0,9.6211]
[1748247039232,3.87977636,2577.5,2577.0,9.6211]
[1748247039400,4.24133457,2577.6,2577.0,9.6211]
[1748247039607,3.87988082,2577.4,2577.0,9.6211]
[1748247039810,3.87988082,2577.4,2577.0,11.35867158]
[1748247042645,3.87982185,2577.5,2577.0,11.35867158]
[1748247042795,3.8799003,2577.4,2577.0,11.35867158]
[1748247045452,3.87978889,2577.5,2577.0,11.35867158]
[1748247046406,4.24100128,2577.6,2577.0,11.35867158]
[1748247046605,4.24100128,2577.6,2577.2,8.0]
[1748247046805,3.87961489,2577.6,2577.2,8.0]
[1748247047610,3.87961489,2577.6,2577.1,8.0]
[1748247048010,3.87974516,2577.5,2577.1,8.0]
[1748247049322,3.87959761,2577.6,2577.1,8.0]
[1748247049507,3.87959761,2577.6,2577.0,13.50155278]
[1748247050949,8.01050373,2577.7,2577.1,3.8802573]
[1748247051130,3.87957823,2577.6,2577.1,3.8802573]
[1748247052005,3.87957823,2577.6,2577.1,11.88030876]
[1748247052350,3.87957823,2577.6,2577.1,3.88032756]
[1748247053723,8.37168793,2577.7,2577.1,3.88032756]
[1748247054244,4.49221101,2577.7,2577.4,3.87979772]
[1748247054425,4.49221101,2577.7,2577.4,8.0]
[1748247054749,4.49221101,2577.7,2577.3,8.0]
[1748247054923,4.131,2577.7,2577.3,8.0]
[1748247055111,6.15021101,2577.8,2577.3,8.0]
[1748247055511,10.02951278,2577.8,2577.3,8.0]
[1748247055811,3.87944072,2577.7,2577.3,8.0]
[1748247056425,4.24065173,2577.7,2577.3,8.0]
[1748247056647,4.24065173,2577.7,2577.3,10.326]
[1748247057261,4.24065173,2577.7,2577.3,8.0]
[1748247060371,4.24065173,2577.7,2577.1,11.8802821]
[1748247061332,0.36121101,2577.6,2577.1,11.8802821]
[1748247063167,0.36121101,2577.6,2577.1,8.0]
[1748247063332,0.36121101,2577.6,2576.5,1.5455]
[1748247063333,1.6082,2577.3,2576.5,1.5455]
[1748247063530,3.88086578,2576.8,2576.4,0.61861717]
[1748247063717,8.01086578,2576.8,2576.4,0.61861717]
[1748247064554,8.01086578,2576.8,2576.3,9.5455]
[1748247064931,1.6306,2576.7,2576.1,0.05]
[1748247065333,1.5071,2576.7,2576.1,0.05]
[1748247065860,3.88148473,2576.4,2576.1,0.05]
[1748247067721,3.88124586,2576.5,2576.1,0.05]
[1748247067722,3.88154956,2576.3,2576.1,0.05]
[1748247067916,3.88145477,2576.4,2576.1,0.05]
[1748247068673,3.88155502,2576.3,2576.1,0.05]
[1748247068875,3.88143055,2576.4,2576.1,0.05]
[1748247072474,3.88143055,2576.4,2576.2,0.66666667]
[1748247072673,3.88153553,2576.3,2576.2,0.66666667]
[1748247073268,3.88140665,2576.4,2576.2,0.66666667]
[1748247074487,8.01230286,2576.5,2576.2,0.66666667]
[1748247074778,3.88142035,2576.4,2576.2,0.66666667]
[1748247077652,5.6361,2576.7,2576.2,2.78693394]
[1748247077859,5.38814829,2576.7,2576.2,2.25556667]
[1748247078087,9.51714829,2576.7,2576.2,2.25556667]
[1748247078256,3.88112536,2576.6,2576.2,2.25556667]
[1748247078850,3.88124957,2576.5,2576.2,0.66666667]
[1748247079051,3.88149337,2576.4,2576.2,0.66666667]
[1748247083977,4.129,2576.6,2576.2,0.66666667]
[1748247084177,3.88131334,2576.5,2576.2,0.66666667]
[1748247084404,3.88110772,2576.6,2576.2,8.66666667]
[1748247084592,3.88110772,2576.6,2576.3,1.6117]
[1748247085924,3.8812394,2576.5,2576.3,1.6117]
[1748247086900,3.88113321,2576.6,2576.3,1.6117]
[1748247087609,3.88126855,2576.5,2576.3,1.6117]
[1748247090319,4.88126855,2576.5,2576.3,1.6117]
[1748247090814,3.88138487,2576.4,2576.2,0.66666667]
[1748247091985,4.88123919,2576.5,2576.2,8.66666667]
[1748247092400,1.0,2576.5,2576.2,8.66666667]
[1748247092595,1.0,2576.5,2576.2,10.00566722]
[1748247092920,1.0,2576.5,2576.2,13.88720752]
[1748247093418,1.0,2576.5,2576.4,1.6547]
[1748247094415,1.0,2576.5,2576.2,2.00566722]
[1748247094615,1.0,2576.5,2576.2,0.66666667]
[1748247094818,4.88130942,2576.5,2576.2,0.66666667]
[1748247095340,1.0,2576.5,2576.3,8.0]
[1748247095546,1.0,2576.5,2576.2,9.71900675]
[1748247101695,1.0,2576.5,2576.3,8.0]
[1748247101895,1.0,2576.5,2576.2,5.60065968]
[1748247102195,4.88123622,2576.5,2576.2,9.71900675]
[1748247102395,4.88123622,2576.5,2576.2,8.66666667]
[1748247102597,3.88140145,2576.4,2576.2,8.66666667]
[1748247102827,3.88140145,2576.4,2576.2,0.66666667]
[1748247103430,4.88128533,2576.5,2576.2,0.66666667]
[1748247104635,3.88141902,2576.4,2576.2,0.66666667]
[1748247105003,4.88130891,2576.5,2576.2,0.66666667]
[1748247107500,3.88140504,2576.4,2576.2,0.66666667]
[1748247108134,3.88153553,2576.3,2576.2,0.66666667]
[1748247108805,5.48505397,2576.4,2576.2,0.66666667]
[1748247117581,3.88153553,2576.3,2576.2,0.66666667]
[1748247127691,3.88153553,2576.3,2576.2,1.33333334]
[1748247132110,9.28663553,2576.3,2576.2,1.33333334]
[1748247135468,13.14469906,2576.3,2576.2,0.74618796]
[1748247136268,13.14469906,2576.3,2576.2,0.66666667]
[1748247137011,13.75763934,2576.3,2576.2,0.66666667]
[1748247138116,17.83763934,2576.3,2576.2,0.66666667]
[1748247138317,13.75763934,2576.3,2576.2,0.66666667]
[1748247139511,17.22469906,2576.3,2576.2,0.66666667]
[1748247139938,18.77917635,2576.3,2576.2,0.66666667]
[1748247140616,3.88319353,2575.2,2575.1,0.05]
[1748247140817,8.00619353,2575.2,2575.1,0.05]
[1748247145195,9.64909353,2575.2,2575.1,0.05]
[1748247147139,5.52609353,2575.2,2575.1,0.05]
[1748247147444,13.52909353,2575.2,2575.1,0.05]
[1748247148742,5.52609353,2575.2,2575.1,0.05]
[1748247149035,13.52909353,2575.2,2575.1,0.05]
[1748247151321,14.07909353,2575.2,2575.1,0.05]
[1748247152435,21.46715706,2575.2,2575.1,0.05]
[1748247152757,21.46815706,2575.2,2575.1,0.05]
[1748247153930,21.79204574,2575.2,2575.1,0.05]
[1748247155971,22.40642734,2575.2,2575.1,0.05]
[1748247156170,5.54170204,2574.2,2574.1,0.05]
[1748247156358,13.54670204,2574.2,2574.1,0.05]
[1748247158069,14.09670204,2574.2,2574.1,0.05]
[1748247158567,6.09170204,2574.2,2574.1,0.05]
[1748247159278,14.09870204,2574.2,2574.1,0.05]
[1748247159780,13.54870204,2574.2,2574.1,0.05]
[1748247159947,5.54170204,2574.2,2574.1,0.05]
[1748247160148,3.88470204,2574.2,2574.1,0.05]
[1748247160343,11.89170204,2574.2,2574.1,0.05]
[1748247162381,13.51490204,2574.2,2574.1,0.05]
[1748247162995,17.32916557,2574.2,2574.1,0.05]
[1748247164295,21.40916557,2574.2,2574.1,0.05]
[1748247164794,5.54870969,2573.4,2573.3,6.58057851]
[1748247164996,14.10570969,2573.4,2573.3,6.58057851]
[1748247166168,6.09870969,2573.4,2573.3,6.58057851]
[1748247166406,14.10570969,2573.4,2573.3,14.58057851]
[1748247166707,13.55570969,2573.4,2573.3,14.58057851]
[1748247167073,5.54870969,2573.4,2573.3,14.58057851]
[1748247167266,11.89290969,2573.4,2573.3,14.58057851]
[1748247167676,3.88590969,2573.4,2573.3,14.58057851]
[1748247167980,11.89490969,2573.4,2573.3,14.58057851]
[1748247168371,3.88590969,2573.4,2573.3,14.58057851]
[1748247168590,11.90790969,2573.4,2573.3,14.58057851]
[1748247168797,13.48260969,2573.4,2573.3,14.58057851]
[1748247171901,3.88772257,2572.2,2572.1,0.05]
[1748247172224,11.90972257,2572.2,2572.1,0.05]
[1748247173297,11.91072257,2572.2,2572.1,0.05]
[1748247173716,11.91172257,2572.2,2572.1,0.05]
[1748247174029,3.88772257,2572.2,2572.1,0.05]
[1748247174195,11.91172257,2572.2,2572.1,1.6366]
[1748247174598,3.88772257,2572.2,2572.1,1.6366]
[1748247174811,3.88745483,2572.4,2572.1,1.6366]
[1748247175122,11.91102251,2572.7,2572.1,1.6366]
[1748247175310,11.91098316,2572.7,2572.2,1.5031]
[1748247175487,3.88728311,2572.5,2572.3,1.6458]
[1748247176284,8.024,2572.7,2572.3,1.6458]
[1748247176485,3.88717762,2572.6,2572.3,1.6458]
[1748247176694,11.91117762,2572.6,2572.3,1.6458]
[1748247177078,3.88717762,2572.6,2572.3,1.6458]
[1748247177306,3.88727787,2572.5,2572.3,1.6458]
[1748247177828,4.141,2572.6,2572.3,1.6458]
[1748247178601,3.88726919,2572.5,2572.3,1.6458]
[1748247179624,4.141,2572.6,2572.3,1.6458]
[1748247179832,4.141,2572.7,2572.4,9.5197]
[1748247180030,0.45812954,2573.7,2573.6,1.5209]
[1748247180198,3.13640072,2575.1,2573.9,8.0]
[1748247180400,0.32388868,2574.1,2574.0,11.53930536]
[1748247180726,4.20874163,2574.1,2574.0,9.5209]
[1748247180933,0.32388868,2574.1,2574.0,9.5209]
[1748247181118,4.20874163,2574.1,2574.0,9.5209]
[1748247181324,3.88485295,2574.1,2574.0,9.5209]
[1748247181490,3.88485295,2574.1,2574.0,8.0]
[1748247182019,3.88575869,2573.5,2573.4,1.6656]
[1748247184526,4.24473782,2573.7,2573.4,1.6656]
[1748247185448,0.3591822,2573.7,2573.4,1.6656]
[1748247185651,3.88570294,2573.6,2573.4,1.6656]
[1748247185802,0.3591822,2573.7,2573.4,1.6656]
[1748247186003,0.3591822,2573.7,2573.6,5.5476077]
[1748247186203,1.0,2574.2,2574.1,3.88485295]
[1748247186439,1.0,2574.2,2574.1,13.54685295]
[1748247186957,1.0,2574.2,2574.1,9.662]
[1748247187096,1.0,2574.2,2574.1,13.54685295]
[1748247187321,1.0,2574.2,2574.1,15.67824949]
[1748247188137,1.99221177,2574.9,2574.5,3.8841476]
[1748247188323,1.99221177,2574.9,2574.7,1.6267]
[1748247189558,0.05,2574.9,2574.7,1.6267]
[1748247192778,0.05,2574.9,2574.4,1.5815]
[1748247193143,3.88406099,2574.7,2574.4,1.5815]
[1748247193348,3.931,2574.9,2574.0,1.5655]
[1748247193548,3.88434348,2574.5,2574.0,1.5655]
[1748247193748,4.139,2574.7,2574.0,1.5655]
[1748247193949,3.88450809,2574.4,2574.0,1.5655]
[1748247194364,3.88427669,2574.5,2574.0,1.5655]
[1748247194764,8.02298928,2574.7,2574.0,1.5655]
[1748247194765,3.88410665,2574.6,2574.0,1.5655]
[1748247195049,4.139,2574.7,2574.0,1.5655]
[1748247195050,3.88425551,2574.5,2574.0,9.5655]
[1748247195249,3.88425551,2574.5,2574.0,1.5655]
[1748247196242,3.88425551,2574.5,2574.0,9.5655]
[1748247196446,3.88410079,2574.6,2574.0,13.45044943]
[1748247196684,8.02306147,2574.7,2574.0,13.45044943]
[1748247198050,3.88413117,2574.6,2574.0,13.45044943]
[1748247198454,3.88413117,2574.6,2574.0,9.5655]
[1748247199985,4.139,2574.7,2574.0,7.18397509]
[1748247200285,4.139,2574.7,2574.3,1.5545]
[1748247202359,3.88464239,2574.3,2573.7,1.5264]
[1748247202562,7.7652244,2574.6,2574.0,3.88495786]
[1748247202862,8.14580788,2574.8,2574.2,1.6438]
[1748247203068,4.262,2574.8,2574.2,1.6438]
[1748247203252,0.05,2574.9,2574.6,1.6438]
[1748247206291,0.05,2574.9,2574.6,5.52789817]
[1748247206454,0.05,2574.9,2574.8,11.88379679]
[1748247206655,4.262,2575.7,2575.1,3.88326458]
[1748247206860,4.262,2575.7,2575.2,9.5035]
[1748247207060,8.1445416,2575.7,2575.2,1.5035]
[1748247207260,8.1445416,2575.7,2575.2,5.38662732]
[1748247207261,4.262,2575.7,2575.2,5.38662732]
[1748247207481,4.262,2575.7,2575.2,6.31362436]
[1748247208388,4.262,2575.7,2575.4,8.0]
[1748247208603,4.262,2575.7,2575.3,1.6541]
[1748247208798,4.262,2575.7,2575.6,11.88259046]
[1748247209109,4.262,2575.7,2575.6,9.6541]
[1748247209875,0.05,2575.9,2575.6,9.6541]
[1748247209876,0.05,2575.9,2575.7,8.0]
[1748247210077,0.05,2575.9,2575.6,1.6541]
[1748247211529,0.05,2575.9,2575.6,2.20777718]
[1748247211676,0.05,2575.9,2575.6,10.20777718]
[1748247211876,0.05,2575.9,2575.6,2.20777718]
[1748247212078,0.05,2575.9,2575.6,10.20777718]
[1748247213618,0.05,2575.9,2575.7,3.88243465]
[1748247213782,0.05,2575.9,2575.8,8.60902118]
[1748247214125,0.05,2575.9,2575.8,0.60902118]
[1748247215341,0.05,2575.9,2575.6,9.6541]
[1748247215924,0.05,2575.9,2575.6,5.53668953]
[1748247216344,0.05,2575.9,2575.7,3.88243045]
[1748247216552,0.05,2575.9,2575.8,3.88228899]
[1748247216711,0.05,2575.9,2575.8,11.88228899]
[1748247216900,0.05,2575.9,2575.8,13.23592789]
[1748247217138,0.05,2575.9,2575.8,14.87972789]
[1748247217338,4.26,2576.4,2576.0,1.6438]
[1748247217532,4.26,2576.4,2576.1,3.88182184]
[1748247217743,4.26,2576.4,2576.2,8.0]
[1748247218245,4.26,2576.4,2575.8,8.0]
[1748247218408,4.26,2576.4,2575.7,1.6201]
[1748247218846,5.4214,2576.5,2575.8,8.0]
[1748247218847,1.5424,2576.5,2575.8,8.0]
[1748247219054,8.137,2576.4,2575.8,11.88226476]
[1748247220044,8.137,2576.4,2575.8,8.0]
[1748247220948,8.137,2576.4,2575.8,11.88225152]
[1748247221336,8.137,2576.4,2575.8,8.0]
[1748247221655,8.137,2576.4,2575.9,8.0]
[1748247222041,8.137,2576.4,2575.9,3.88211384]
[1748247222618,4.259,2576.4,2575.9,1.87349049]
[1748247222847,3.878,2576.5,2575.9,5.75549144]
[1748247223051,1.5893,2576.7,2575.9,5.75549144]
[1748247223052,12.01810057,2576.6,2576.1,8.0]
[1748247223225,12.01810057,2576.6,2576.0,8.0]
[1748247223660,12.01810057,2576.6,2576.0,3.88197322]
[1748247224665,3.88123935,2576.5,2575.9,13.75555465]
[1748247224964,3.88123935,2576.5,2575.9,9.87349049]
[1748247225672,3.88123935,2576.5,2575.9,5.755625]
[1748247225969,3.88145688,2576.4,2575.9,1.87349049]
[1748247226767,3.88130479,2576.5,2575.9,1.87349049]
[1748247226976,3.88138689,2576.4,2575.9,1.87349049]
[1748247227164,3.88127967,2576.5,2575.9,5.75559402]
[1748247227569,3.88127967,2576.5,2575.9,1.87349049]
[1748247227781,3.88140464,2576.4,2575.9,1.87349049]
[1748247228288,3.88140464,2576.4,2575.8,3.88224659]
[1748247228289,3.88123587,2576.5,2575.7,13.50246993]
[1748247228435,3.88154677,2576.3,2575.7,13.50246993]
[1748247228640,3.8814408,2576.4,2575.8,3.88227417]
[1748247229172,3.88138266,2576.5,2575.8,3.88221421]
[1748247229376,3.88139905,2576.4,2575.8,3.88221421]
[1748247229578,8.137,2576.6,2575.7,9.6201]
[1748247229785,3.88136004,2576.5,2575.8,3.8821916]
[1748247229998,3.88139229,2576.4,2575.8,3.8821916]
[1748247230143,3.88141083,2576.4,2575.9,8.0]
[1748247230654,3.8812377,2576.5,2575.8,8.0]
[1748247230880,3.88138487,2576.4,2575.8,8.0]
[1748247231063,8.137,2576.6,2575.7,9.6201]
[1748247231393,3.8813818,2576.5,2575.8,3.88216135]
[1748247231588,3.88125397,2576.5,2575.8,3.88227222]
[1748247231886,12.01810912,2576.6,2575.8,3.88228899]
[1748247232259,3.88133157,2576.5,2575.8,3.88228899]
[1748247232576,3.88151409,2576.4,2575.7,9.6201]
[1748247232903,3.88130737,2576.5,2575.8,3.8822603]
[1748247233097,3.88130737,2576.5,2575.9,3.88211531]
[1748247233396,3.88130737,2576.5,2575.8,3.88221518]
[1748247233591,8.137,2576.6,2575.7,9.6201]
[1748247233761,3.88164185,2576.3,2575.7,9.6201]
[1748247233961,8.137,2576.6,2575.7,13.50252219]
[1748247234160,3.88150963,2576.4,2575.7,13.50252219]
[1748247234564,3.88150963,2576.4,2575.8,3.88227446]
[1748247236065,1.5893,2576.7,2576.0,8.0]
[1748247236066,11.99330011,2576.5,2576.0,8.0]
[1748247236265,3.88130011,2576.5,2576.0,8.0]
[1748247237192,11.99309999,2576.6,2576.0,8.0]
[1748247237398,3.88130239,2576.5,2576.0,8.0]
[1748247237603,3.88140927,2576.4,2576.0,8.0]
[1748247237806,7.75930604,2576.5,2575.9,11.8821324]